[Event "Early-Titled-Tuesday-Blitz-March-19-2024"]
[Site "Chess.com"]
[Date "2024.03.19"]
[Round "7"]
[White "aljado"]
[Black "Lovetov"]
[Result "0-1"]
[WhiteElo "2126"]
[BlackElo "2543"]
[TimeControl "180+1"]
[EndTime "9:18:25 PDT"]
[Termination "Lovetov won on time"]

1. e4 {[%clk 0:03:00.9]} 1... c5 {[%clk 0:02:58.5]} 2. Nf3 {[%clk 0:03:00]} 2...
Nc6 {[%clk 0:02:56.6]} 3. d4 {[%clk 0:02:58.1]} 3... cxd4 {[%clk 0:02:57]} 4.
Nxd4 {[%clk 0:02:58.5]} 4... Nf6 {[%clk 0:02:57.6]} 5. Nc3 {[%clk 0:02:58.3]}
5... e5 {[%clk 0:02:58.2]} 6. Ndb5 {[%clk 0:02:58.3]} 6... d6 {[%clk 0:02:58.5]}
7. Nd5 {[%clk 0:02:55]} 7... Nxd5 {[%clk 0:02:58.2]} 8. exd5 {[%clk 0:02:55.4]}
8... Nb8 {[%clk 0:02:57.6]} 9. Qf3 {[%clk 0:02:54.4]} 9... Be7 {[%clk
0:02:54.2]} 10. c4 {[%clk 0:02:49.5]} 10... O-O {[%clk 0:02:52.2]} 11. Be3
{[%clk 0:02:45.1]} 11... f5 {[%clk 0:02:48.5]} 12. b4 {[%clk 0:02:25.7]} 12...
a5 {[%clk 0:02:40.3]} 13. bxa5 {[%clk 0:02:13.4]} 13... Rxa5 {[%clk 0:02:34.4]}
14. Bd2 {[%clk 0:02:05.2]} 14... Ra6 {[%clk 0:02:30.6]} 15. Be2 {[%clk
0:02:00.2]} 15... Nd7 {[%clk 0:02:27.1]} 16. h4 {[%clk 0:01:50.4]} 16... Nc5
{[%clk 0:02:26]} 17. h5 {[%clk 0:01:49.9]} 17... e4 {[%clk 0:02:22.4]} 18. Qg3
{[%clk 0:01:43.4]} 18... Bf6 {[%clk 0:02:22.2]} 19. Bc3 {[%clk 0:01:31]} 19...
f4 {[%clk 0:02:20.7]} 20. Bxf6 {[%clk 0:01:26.6]} 20... Qxf6 {[%clk 0:02:20.2]}
21. Qc3 {[%clk 0:01:27.2]} 21... Qg5 {[%clk 0:02:07.1]} 22. h6 {[%clk
0:01:24.2]} 22... Rf6 {[%clk 0:02:00.7]} 23. hxg7 {[%clk 0:01:15.9]} 23... e3
{[%clk 0:01:52.3]} 24. Rh5 {[%clk 0:00:56.4]} 24... exf2+ {[%clk 0:01:42.5]} 25.
Kf1 {[%clk 0:00:53.8]} 25... Qxg7 {[%clk 0:01:40.3]} 26. Nc7 {[%clk 0:00:35.1]}
26... Ne4 {[%clk 0:01:37]} 27. Qb2 {[%clk 0:00:25.5]} 27... Ng3+ {[%clk
0:01:28.9]} 28. Kxf2 {[%clk 0:00:25]} 28... Nxh5 {[%clk 0:01:29.3]} 29. Bxh5
{[%clk 0:00:20.1]} 29... f3 {[%clk 0:01:22.8]} 30. g3 {[%clk 0:00:18.4]} 30...
Rh6 {[%clk 0:00:42]} 31. Qxg7+ {[%clk 0:00:07.1]} 31... Kxg7 {[%clk 0:00:42.9]}
32. Nxa6 {[%clk 0:00:06.7]} 32... Rxh5 {[%clk 0:00:42.9]} 33. Nc7 {[%clk
0:00:03.4]} 33... Bg4 {[%clk 0:00:43.5]} 34. Ne6+ {[%clk 0:00:02.3]} 34... Kf6
{[%clk 0:00:42.2]} 0-1

[Event "Early-Titled-Tuesday-Blitz-March-19-2024"]
[Site "Chess.com"]
[Date "2024.03.19"]
[Round "7"]
[White "koncheto"]
[Black "diamonds13"]
[Result "1-0"]
[WhiteElo "2495"]
[BlackElo "2334"]
[TimeControl "180+1"]
[EndTime "9:18:25 PDT"]
[Termination "koncheto won by checkmate"]

1. e4 {[%clk 0:03:00.9]} 1... c5 {[%clk 0:02:57.8]} 2. Nf3 {[%clk 0:03:01.1]}
2... Nc6 {[%clk 0:02:57.4]} 3. d4 {[%clk 0:02:57.6]} 3... cxd4 {[%clk
0:02:56.8]} 4. c3 {[%clk 0:02:58]} 4... dxc3 {[%clk 0:02:55.4]} 5. Nxc3 {[%clk
0:02:58.5]} 5... Nf6 {[%clk 0:02:55.6]} 6. Bc4 {[%clk 0:02:55.4]} 6... e6 {[%clk
0:02:55.7]} 7. O-O {[%clk 0:02:44.4]} 7... Bb4 {[%clk 0:02:55]} 8. Nd5 {[%clk
0:02:34.6]} 8... exd5 {[%clk 0:02:52.4]} 9. exd5 {[%clk 0:02:33.7]} 9... Ne7
{[%clk 0:02:51.5]} 10. d6 {[%clk 0:02:31.4]} 10... Nf5 {[%clk 0:02:40.9]} 11.
Ng5 {[%clk 0:01:49.7]} 11... O-O {[%clk 0:02:36.5]} 12. Nxf7 {[%clk 0:01:49.7]}
12... Rxf7 {[%clk 0:02:36.2]} 13. Bxf7+ {[%clk 0:01:50.6]} 13... Kxf7 {[%clk
0:02:36]} 14. Qb3+ {[%clk 0:01:51.2]} 14... Kf8 {[%clk 0:02:25.1]} 15. Qxb4
{[%clk 0:01:50.9]} 15... b5 {[%clk 0:02:22.8]} 16. Qxb5 {[%clk 0:01:34.5]} 16...
Qb6 {[%clk 0:02:22.4]} 17. Qxf5 {[%clk 0:01:33.3]} 17... Bb7 {[%clk 0:02:19.8]}
18. Be3 {[%clk 0:01:24.8]} 18... Qc6 {[%clk 0:02:18.7]} 19. f3 {[%clk
0:01:21.4]} 19... Re8 {[%clk 0:02:17.3]} 20. Bd4 {[%clk 0:01:17.8]} 20... Re6
{[%clk 0:02:07.2]} 21. Rfe1 {[%clk 0:01:03.5]} 21... Qa4 {[%clk 0:02:05.4]} 22.
Bxf6 {[%clk 0:00:50.1]} 22... Rxf6 {[%clk 0:02:05.5]} 23. Qh5 {[%clk 0:00:49.6]}
23... Qd4+ {[%clk 0:01:57.5]} 24. Kh1 {[%clk 0:00:47.8]} 24... Rg6 {[%clk
0:01:48.3]} 25. Qxh7 {[%clk 0:00:34.5]} 25... Qxd6 {[%clk 0:01:34.9]} 26. Qh8+
{[%clk 0:00:19.2]} 26... Kf7 {[%clk 0:01:34.7]} 27. Qe8+ {[%clk 0:00:20.1]}
27... Kf6 {[%clk 0:01:34.4]} 28. Rad1 {[%clk 0:00:21]} 28... Qb4 {[%clk
0:01:23.3]} 29. Qe5+ {[%clk 0:00:18.4]} 29... Kf7 {[%clk 0:01:21.5]} 30. Rxd7+
{[%clk 0:00:18.9]} 30... Kg8 {[%clk 0:01:20.6]} 31. Rd8+ {[%clk 0:00:13.8]}
31... Kh7 {[%clk 0:01:20.2]} 32. Qh5+ {[%clk 0:00:13.6]} 32... Rh6 {[%clk
0:01:20.2]} 33. Qf5+ {[%clk 0:00:14.2]} 33... Rg6 {[%clk 0:01:20.1]} 34. Ree8
{[%clk 0:00:08.8]} 34... Qe1+ {[%clk 0:01:05.7]} 35. Rxe1 {[%clk 0:00:08.2]}
35... Bc6 {[%clk 0:01:00.6]} 36. Re6 {[%clk 0:00:07.3]} 36... Be8 {[%clk
0:00:57.6]} 37. Rdxe8 {[%clk 0:00:05.6]} 37... Kh6 {[%clk 0:00:50.8]} 38. Rxg6+
{[%clk 0:00:04.4]} 38... Kh7 {[%clk 0:00:49.1]} 39. Qh5# {[%clk 0:00:02.8]} 1-0

[Event "Early-Titled-Tuesday-Blitz-March-19-2024"]
[Site "Chess.com"]
[Date "2024.03.19"]
[Round "7"]
[White "platy3"]
[Black "Rutricks"]
[Result "1-0"]
[WhiteElo "2950"]
[BlackElo "2714"]
[TimeControl "180+1"]
[EndTime "9:18:30 PDT"]
[Termination "platy3 won by resignation"]

1. e4 {[%clk 0:03:00.9]} 1... g6 {[%clk 0:02:59.9]} 2. d4 {[%clk 0:03:00.6]}
2... Bg7 {[%clk 0:03:00.7]} 3. Nf3 {[%clk 0:03:01.3]} 3... c6 {[%clk 0:03:01.1]}
4. h3 {[%clk 0:03:00.6]} 4... d5 {[%clk 0:03:01.8]} 5. Nc3 {[%clk 0:03:00.3]}
5... dxe4 {[%clk 0:03:02.7]} 6. Nxe4 {[%clk 0:03:01]} 6... Nf6 {[%clk
0:03:03.6]} 7. Nxf6+ {[%clk 0:03:00.5]} 7... exf6 {[%clk 0:03:04.5]} 8. Bc4
{[%clk 0:03:00.7]} 8... O-O {[%clk 0:03:05.4]} 9. O-O {[%clk 0:03:00.8]} 9... a5
{[%clk 0:03:06.3]} 10. a4 {[%clk 0:02:59.2]} 10... Na6 {[%clk 0:03:06.9]} 11.
Bf4 {[%clk 0:02:57.5]} 11... Nb4 {[%clk 0:03:07]} 12. Qd2 {[%clk 0:02:55.9]}
12... Bf5 {[%clk 0:03:06.6]} 13. c3 {[%clk 0:02:54.8]} 13... Nd5 {[%clk
0:03:07.3]} 14. Bg3 {[%clk 0:02:52.2]} 14... Re8 {[%clk 0:03:07.5]} 15. Rfe1
{[%clk 0:02:52]} 15... Qd7 {[%clk 0:03:08.1]} 16. Bd3 {[%clk 0:02:46.3]} 16...
Bxd3 {[%clk 0:02:51.7]} 17. Qxd3 {[%clk 0:02:45.9]} 17... Bf8 {[%clk 0:02:52.4]}
18. Nd2 {[%clk 0:02:44.4]} 18... f5 {[%clk 0:02:21.8]} 19. Nc4 {[%clk
0:02:43.1]} 19... f6 {[%clk 0:02:21.5]} 20. Rxe8 {[%clk 0:02:26.6]} 20... Qxe8
{[%clk 0:02:17.9]} 21. Bd6 {[%clk 0:02:26.6]} 21... Bxd6 {[%clk 0:01:04.4]} 22.
Nxd6 {[%clk 0:02:26.1]} 22... Qe7 {[%clk 0:01:05.2]} 23. Nc4 {[%clk 0:02:24.7]}
23... Qe6 {[%clk 0:01:05.8]} 24. Qf1 {[%clk 0:02:11.3]} 24... Re8 {[%clk
0:00:58.8]} 25. Nxa5 {[%clk 0:02:09.2]} 25... f4 {[%clk 0:00:52.3]} 26. Nxb7
{[%clk 0:02:03]} 26... f3 {[%clk 0:00:52.8]} 27. Nc5 {[%clk 0:02:00.7]} 27...
Qf5 {[%clk 0:00:50.9]} 28. Qd3 {[%clk 0:01:56.7]} 28... Qg5 {[%clk 0:00:24.9]}
29. Qxf3 {[%clk 0:01:55.4]} 29... Nf4 {[%clk 0:00:25.1]} 30. h4 {[%clk
0:01:43.8]} 30... Qf5 {[%clk 0:00:24.8]} 31. g3 {[%clk 0:01:36.7]} 31... Ne2+
{[%clk 0:00:12.5]} 32. Kg2 {[%clk 0:01:37.2]} 32... Qc2 {[%clk 0:00:13.2]} 33.
Qxf6 {[%clk 0:01:25.7]} 33... Rf8 {[%clk 0:00:13.4]} 34. Qe6+ {[%clk 0:01:24.7]}
34... Rf7 {[%clk 0:00:14.1]} 35. Ne4 {[%clk 0:01:12.9]} 35... Kf8 {[%clk
0:00:08.9]} 36. Qd6+ {[%clk 0:01:05.1]} 36... Kg7 {[%clk 0:00:06.9]} 37. Qe5+
{[%clk 0:01:04.5]} 37... Kf8 {[%clk 0:00:04.9]} 38. Ng5 {[%clk 0:00:56.2]} 38...
Rxf2+ {[%clk 0:00:03.2]} 39. Kxf2 {[%clk 0:00:56.4]} 39... Nxd4+ {[%clk
0:00:03.8]} 40. Kg1 {[%clk 0:00:52.3]} 40... Ne2+ {[%clk 0:00:02.5]} 41. Kh1
{[%clk 0:00:52.1]} 41... Qxb2 {[%clk 0:00:01.8]} 42. Rf1+ {[%clk 0:00:51.1]} 1-0

[Event "Early-Titled-Tuesday-Blitz-March-19-2024"]
[Site "Chess.com"]
[Date "2024.03.19"]
[Round "7"]
[White "Meri-Arabidze"]
[Black "xakevicius91"]
[Result "1-0"]
[WhiteElo "2684"]
[BlackElo "2541"]
[TimeControl "180+1"]
[EndTime "9:18:30 PDT"]
[Termination "Meri-Arabidze won by resignation"]

1. d4 {[%clk 0:03:00.9]} 1... Nf6 {[%clk 0:02:58.9]} 2. c4 {[%clk 0:03:01.2]}
2... e6 {[%clk 0:02:58.9]} 3. g3 {[%clk 0:03:00.8]} 3... c5 {[%clk 0:02:58.6]}
4. d5 {[%clk 0:02:59.8]} 4... exd5 {[%clk 0:02:59.5]} 5. cxd5 {[%clk 0:03:00.6]}
5... d6 {[%clk 0:02:59.2]} 6. Bg2 {[%clk 0:03:00.8]} 6... g6 {[%clk 0:02:59.9]}
7. Nc3 {[%clk 0:03:01.1]} 7... Bg7 {[%clk 0:03:00.3]} 8. Nf3 {[%clk 0:03:01.4]}
8... O-O {[%clk 0:03:01]} 9. O-O {[%clk 0:03:02.1]} 9... Re8 {[%clk 0:03:01.6]}
10. Bf4 {[%clk 0:03:00.8]} 10... Na6 {[%clk 0:03:02]} 11. Nd2 {[%clk 0:02:58.2]}
11... Nh5 {[%clk 0:02:52]} 12. Be3 {[%clk 0:02:58.1]} 12... Nc7 {[%clk
0:02:51.9]} 13. a4 {[%clk 0:02:56.1]} 13... a6 {[%clk 0:02:51.5]} 14. Nc4 {[%clk
0:02:55.6]} 14... Rb8 {[%clk 0:02:40.8]} 15. Qd2 {[%clk 0:02:35.4]} 15... b5
{[%clk 0:02:33.7]} 16. axb5 {[%clk 0:02:29.5]} 16... axb5 {[%clk 0:02:34.6]} 17.
Na5 {[%clk 0:02:29.7]} 17... Bd7 {[%clk 0:02:34.4]} 18. Ne4 {[%clk 0:02:11.7]}
18... Qe7 {[%clk 0:02:18.1]} 19. Nc6 {[%clk 0:02:09.6]} 19... Bxc6 {[%clk
0:02:16.7]} 20. dxc6 {[%clk 0:02:10.5]} 20... Red8 {[%clk 0:01:46.7]} 21. Ra7
{[%clk 0:02:04.5]} 21... Ra8 {[%clk 0:01:16.4]} 22. Rfa1 {[%clk 0:02:03.6]}
22... Rxa7 {[%clk 0:01:14]} 23. Rxa7 {[%clk 0:02:04.5]} 23... Be5 {[%clk
0:00:55.2]} 24. Nc3 {[%clk 0:01:52.8]} 24... Bxc3 {[%clk 0:00:52.5]} 25. bxc3
{[%clk 0:01:50]} 25... Ng7 {[%clk 0:00:46.5]} 26. Qa2 {[%clk 0:01:27.7]} 26...
Nge6 {[%clk 0:00:43.1]} 27. h4 {[%clk 0:01:27.1]} 27... Qf8 {[%clk 0:00:30.7]}
28. Qa5 {[%clk 0:01:20.6]} 28... Rc8 {[%clk 0:00:26]} 29. h5 {[%clk 0:01:09.1]}
29... Qg7 {[%clk 0:00:24.5]} 30. h6 {[%clk 0:01:07.8]} 30... Qe5 {[%clk
0:00:16.8]} 31. Bh3 {[%clk 0:00:49.3]} 31... d5 {[%clk 0:00:15.7]} 32. Bxe6
{[%clk 0:00:43]} 32... Nxe6 {[%clk 0:00:13]} 33. Ra8 {[%clk 0:00:38.8]} 33...
Rb8 {[%clk 0:00:02.5]} 34. Qa7 {[%clk 0:00:38.2]} 34... Rxa8 {[%clk 0:00:02.1]}
35. Qxa8+ {[%clk 0:00:38.5]} 35... Nf8 {[%clk 0:00:02.7]} 36. Bxc5 {[%clk
0:00:36.6]} 1-0

[Event "Early-Titled-Tuesday-Blitz-March-19-2024"]
[Site "Chess.com"]
[Date "2024.03.19"]
[Round "7"]
[White "Alexchess1984"]
[Black "Josgar05"]
[Result "1-0"]
[WhiteElo "2767"]
[BlackElo "2381"]
[TimeControl "180+1"]
[EndTime "9:18:35 PDT"]
[Termination "Alexchess1984 won by resignation"]

1. e4 {[%clk 0:03:00.9]} 1... e6 {[%clk 0:02:59.4]} 2. d4 {[%clk 0:02:59.9]}
2... d5 {[%clk 0:02:57.8]} 3. Nd2 {[%clk 0:02:58.8]} 3... dxe4 {[%clk
0:02:56.1]} 4. Nxe4 {[%clk 0:02:58.2]} 4... Nf6 {[%clk 0:02:56.7]} 5. Nxf6+
{[%clk 0:02:56.7]} 5... gxf6 {[%clk 0:02:56.3]} 6. Nf3 {[%clk 0:02:54.9]} 6...
Nd7 {[%clk 0:02:54.7]} 7. Bd3 {[%clk 0:02:54.7]} 7... Be7 {[%clk 0:02:52.1]} 8.
Qe2 {[%clk 0:02:54.3]} 8... c5 {[%clk 0:02:49.1]} 9. Bf4 {[%clk 0:02:53.1]} 9...
cxd4 {[%clk 0:02:37.9]} 10. O-O-O {[%clk 0:02:52.4]} 10... e5 {[%clk 0:02:28.4]}
11. Bg3 {[%clk 0:02:51]} 11... Qa5 {[%clk 0:02:20]} 12. Kb1 {[%clk 0:02:48.6]}
12... b6 {[%clk 0:01:37.2]} 13. Rhe1 {[%clk 0:02:44.9]} 13... Bb7 {[%clk
0:01:34.1]} 14. Nxd4 {[%clk 0:02:42.1]} 14... O-O-O {[%clk 0:01:34.2]} 15. Nf5
{[%clk 0:02:40.3]} 15... Bc5 {[%clk 0:01:28.5]} 16. Be4 {[%clk 0:02:36.7]} 16...
Qa6 {[%clk 0:01:13.8]} 17. Qf3 {[%clk 0:01:51.1]} 17... Bxe4 {[%clk 0:00:33.1]}
18. Qxe4 {[%clk 0:01:52]} 18... Qb7 {[%clk 0:00:31.4]} 19. Qa4 {[%clk
0:01:51.8]} 19... Rhe8 {[%clk 0:00:29.8]} 20. Qb3 {[%clk 0:01:17.4]} 20... Re6
{[%clk 0:00:28.7]} 21. Rd5 {[%clk 0:01:09.8]} 21... Qc7 {[%clk 0:00:16.2]} 22.
Red1 {[%clk 0:01:09.1]} 22... Bf8 {[%clk 0:00:12.3]} 23. Qb5 {[%clk 0:00:51]}
23... Rc6 {[%clk 0:00:12.4]} 24. c3 {[%clk 0:00:41.9]} 24... Rc5 {[%clk
0:00:12.6]} 25. Qa6+ {[%clk 0:00:41.5]} 25... Kb8 {[%clk 0:00:12.7]} 26. R5d2
{[%clk 0:00:30.4]} 26... Qc6 {[%clk 0:00:13.1]} 27. Ne3 {[%clk 0:00:23]} 27...
Ka8 {[%clk 0:00:13]} 28. Qe2 {[%clk 0:00:20.6]} 28... Be7 {[%clk 0:00:13.1]} 29.
Qf3 {[%clk 0:00:20.3]} 29... Qxf3 {[%clk 0:00:12.9]} 30. gxf3 {[%clk 0:00:20.5]}
30... Rc7 {[%clk 0:00:07]} 31. Nd5 {[%clk 0:00:20.4]} 31... Bd6 {[%clk
0:00:07.2]} 32. Nxc7+ {[%clk 0:00:20.3]} 32... Bxc7 {[%clk 0:00:08.1]} 1-0

[Event "Early-Titled-Tuesday-Blitz-March-19-2024"]
[Site "Chess.com"]
[Date "2024.03.19"]
[Round "7"]
[White "djokovic74"]
[Black "laziestwin"]
[Result "1-0"]
[WhiteElo "2730"]
[BlackElo "2558"]
[TimeControl "180+1"]
[EndTime "9:18:37 PDT"]
[Termination "djokovic74 won by checkmate"]

1. c4 {[%clk 0:03:00.9]} 1... d6 {[%clk 0:02:52.1]} 2. Nf3 {[%clk 0:03:00.7]}
2... g6 {[%clk 0:02:51.9]} 3. Nc3 {[%clk 0:03:00.9]} 3... Bg7 {[%clk 0:02:52.5]}
4. g3 {[%clk 0:03:01.4]} 4... Nf6 {[%clk 0:02:53.4]} 5. Bg2 {[%clk 0:03:01.8]}
5... O-O {[%clk 0:02:54.1]} 6. O-O {[%clk 0:03:02.4]} 6... Nc6 {[%clk
0:02:49.1]} 7. d4 {[%clk 0:03:02.8]} 7... a6 {[%clk 0:02:48.4]} 8. e4 {[%clk
0:03:02.7]} 8... Bg4 {[%clk 0:02:43.9]} 9. Be3 {[%clk 0:02:58.7]} 9... e5 {[%clk
0:02:43]} 10. d5 {[%clk 0:02:58.8]} 10... Nd4 {[%clk 0:02:43.4]} 11. Bxd4 {[%clk
0:02:58.9]} 11... exd4 {[%clk 0:02:43.8]} 12. Qxd4 {[%clk 0:02:59.6]} 12... Re8
{[%clk 0:02:43.9]} 13. Qd3 {[%clk 0:02:59.8]} 13... Nd7 {[%clk 0:02:44]} 14.
Rac1 {[%clk 0:02:54.1]} 14... Nc5 {[%clk 0:02:43.5]} 15. Qe3 {[%clk 0:02:47.4]}
15... Bxc3 {[%clk 0:02:41]} 16. Qxc3 {[%clk 0:02:45.4]} 16... Nxe4 {[%clk
0:02:40.3]} 17. Qd4 {[%clk 0:02:45.7]} 17... Qf6 {[%clk 0:02:38.3]} 18. Qxf6
{[%clk 0:02:45.6]} 18... Nxf6 {[%clk 0:02:39.2]} 19. Rfe1 {[%clk 0:02:46.1]}
19... Bxf3 {[%clk 0:02:38.4]} 20. Bxf3 {[%clk 0:02:45.9]} 20... Nd7 {[%clk
0:02:39.1]} 21. Kg2 {[%clk 0:02:44.5]} 21... Nc5 {[%clk 0:02:37.2]} 22. Red1
{[%clk 0:02:43.1]} 22... a5 {[%clk 0:02:36.8]} 23. b3 {[%clk 0:02:43.1]} 23...
Re5 {[%clk 0:02:35.8]} 24. Rc3 {[%clk 0:02:42.4]} 24... Rae8 {[%clk 0:02:32.1]}
25. a3 {[%clk 0:02:42.7]} 25... Na6 {[%clk 0:02:10.7]} 26. b4 {[%clk 0:02:32.8]}
26... axb4 {[%clk 0:02:10.5]} 27. axb4 {[%clk 0:02:33.2]} 27... Nxb4 {[%clk
0:02:04.2]} 28. Rb1 {[%clk 0:02:24.9]} 28... c5 {[%clk 0:01:46.2]} 29. dxc6
{[%clk 0:02:24]} 29... Nxc6 {[%clk 0:01:46.8]} 30. Rxb7 {[%clk 0:02:24.2]} 30...
Nd4 {[%clk 0:01:46.6]} 31. Bd5 {[%clk 0:02:23.6]} 31... R8e7 {[%clk 0:01:44.2]}
32. Rb8+ {[%clk 0:02:11.4]} 32... Kg7 {[%clk 0:01:43.9]} 33. Rd3 {[%clk
0:02:11.9]} 33... Nf5 {[%clk 0:01:35.7]} 34. Bf3 {[%clk 0:02:07.6]} 34... Rc5
{[%clk 0:01:33.7]} 35. Bd5 {[%clk 0:02:06.8]} 35... Ra5 {[%clk 0:01:33.4]} 36.
Rd2 {[%clk 0:02:02.6]} 36... Ra3 {[%clk 0:01:30.7]} 37. Rd8 {[%clk 0:01:58.2]}
37... h5 {[%clk 0:01:29.5]} 38. h3 {[%clk 0:01:49]} 38... Rc7 {[%clk 0:00:51]}
39. Re2 {[%clk 0:01:35]} 39... Raa7 {[%clk 0:00:36.1]} 40. Ree8 {[%clk
0:01:28.6]} 40... Rd7 {[%clk 0:00:27.7]} 41. Rb8 {[%clk 0:01:24.1]} 41... Ra3
{[%clk 0:00:08.1]} 42. Kg1 {[%clk 0:01:00.9]} 42... Rc3 {[%clk 0:00:06.7]} 43.
g4 {[%clk 0:01:00.9]} 43... hxg4 {[%clk 0:00:06.6]} 44. hxg4 {[%clk 0:01:01.7]}
44... Nd4 {[%clk 0:00:06.8]} 45. g5 {[%clk 0:01:01.8]} 45... f6 {[%clk
0:00:01.4]} 46. Rg8+ {[%clk 0:00:59.5]} 46... Kh7 {[%clk 0:00:01.6]} 47. Rh8+
{[%clk 0:01:00.2]} 47... Kg7 {[%clk 0:00:02.5]} 48. Rbg8# {[%clk 0:01:00.4]} 1-0

[Event "Early-Titled-Tuesday-Blitz-March-19-2024"]
[Site "Chess.com"]
[Date "2024.03.19"]
[Round "7"]
[White "fandebobbyfischer"]
[Black "AccioChess"]
[Result "1-0"]
[WhiteElo "2692"]
[BlackElo "2465"]
[TimeControl "180+1"]
[EndTime "9:18:39 PDT"]
[Termination "fandebobbyfischer won on time"]

1. e4 {[%clk 0:03:00.9]} 1... c5 {[%clk 0:02:59.1]} 2. Nf3 {[%clk 0:03:01]} 2...
Nc6 {[%clk 0:02:59.2]} 3. d4 {[%clk 0:03:00.7]} 3... cxd4 {[%clk 0:03:00.1]} 4.
Nxd4 {[%clk 0:03:01.6]} 4... Nf6 {[%clk 0:03:00.4]} 5. Nc3 {[%clk 0:03:01.5]}
5... e5 {[%clk 0:03:00.5]} 6. Ndb5 {[%clk 0:03:01.9]} 6... d6 {[%clk 0:03:01]}
7. Bg5 {[%clk 0:03:01.7]} 7... a6 {[%clk 0:03:01.4]} 8. Na3 {[%clk 0:03:02.4]}
8... b5 {[%clk 0:03:01.1]} 9. Bxf6 {[%clk 0:03:00.7]} 9... gxf6 {[%clk
0:03:01.1]} 10. Nd5 {[%clk 0:03:01.3]} 10... f5 {[%clk 0:02:57.8]} 11. g3 {[%clk
0:03:01.3]} 11... Bg7 {[%clk 0:02:57.3]} 12. Bg2 {[%clk 0:03:01.1]} 12... O-O
{[%clk 0:02:57.4]} 13. exf5 {[%clk 0:02:51.5]} 13... Bxf5 {[%clk 0:02:38.7]} 14.
Ne3 {[%clk 0:02:49.5]} 14... Ne7 {[%clk 0:02:35.1]} 15. Nxf5 {[%clk 0:02:26.6]}
15... Nxf5 {[%clk 0:02:36]} 16. O-O {[%clk 0:02:27.1]} 16... Ra7 {[%clk
0:02:33.4]} 17. c3 {[%clk 0:02:26.2]} 17... Ne7 {[%clk 0:02:30.1]} 18. Qh5
{[%clk 0:02:22.5]} 18... d5 {[%clk 0:02:28.3]} 19. Rad1 {[%clk 0:02:22]} 19...
Rd7 {[%clk 0:02:25.5]} 20. Nc2 {[%clk 0:02:18.4]} 20... f5 {[%clk 0:02:08.9]}
21. Rd2 {[%clk 0:01:54.9]} 21... d4 {[%clk 0:02:04.5]} 22. cxd4 {[%clk
0:01:54.2]} 22... exd4 {[%clk 0:02:05.4]} 23. Rfd1 {[%clk 0:01:54.5]} 23... Ng6
{[%clk 0:01:44]} 24. Nb4 {[%clk 0:01:18]} 24... Rd6 {[%clk 0:01:16.5]} 25. Nd3
{[%clk 0:01:12.6]} 25... Qf6 {[%clk 0:01:04.9]} 26. f4 {[%clk 0:01:08.2]} 26...
Qf7 {[%clk 0:00:43.2]} 27. Bh3 {[%clk 0:00:46.2]} 27... Ne7 {[%clk 0:00:27.7]}
28. Qxf7+ {[%clk 0:00:44.8]} 28... Kxf7 {[%clk 0:00:28.1]} 29. Bg2 {[%clk
0:00:39.7]} 29... Rfd8 {[%clk 0:00:16.8]} 30. Re2 {[%clk 0:00:39.1]} 30... Nc6
{[%clk 0:00:13.5]} 31. Rde1 {[%clk 0:00:39.3]} 31... Bf6 {[%clk 0:00:12.7]} 32.
Bf3 {[%clk 0:00:38.6]} 32... Kg6 {[%clk 0:00:11.3]} 33. h4 {[%clk 0:00:37.9]}
33... h5 {[%clk 0:00:10.4]} 34. Re6 {[%clk 0:00:37.4]} 34... Kf7 {[%clk
0:00:06.6]} 35. Bxh5+ {[%clk 0:00:36.4]} 35... Kg7 {[%clk 0:00:05.8]} 36. Bf3
{[%clk 0:00:36.9]} 36... Na5 {[%clk 0:00:04.3]} 37. b3 {[%clk 0:00:33.2]} 1-0

[Event "Early-Titled-Tuesday-Blitz-March-19-2024"]
[Site "Chess.com"]
[Date "2024.03.19"]
[Round "7"]
[White "Winner_7777"]
[Black "mertfelin"]
[Result "1-0"]
[WhiteElo "2623"]
[BlackElo "2374"]
[TimeControl "180+1"]
[EndTime "9:18:39 PDT"]
[Termination "Winner_7777 won by resignation"]

1. d4 {[%clk 0:03:00.9]} 1... d5 {[%clk 0:03:00.4]} 2. c4 {[%clk 0:03:01.8]}
2... e6 {[%clk 0:03:00.9]} 3. Nc3 {[%clk 0:03:02.3]} 3... Be7 {[%clk 0:03:01.6]}
4. Nf3 {[%clk 0:03:01.9]} 4... Nf6 {[%clk 0:03:02.1]} 5. Bg5 {[%clk 0:03:01.3]}
5... h6 {[%clk 0:03:01.5]} 6. Bh4 {[%clk 0:03:01.6]} 6... O-O {[%clk 0:03:02.1]}
7. e3 {[%clk 0:03:01.6]} 7... b6 {[%clk 0:03:02.8]} 8. cxd5 {[%clk 0:03:01.5]}
8... Nxd5 {[%clk 0:03:03.3]} 9. Bxe7 {[%clk 0:03:01]} 9... Qxe7 {[%clk
0:03:03.3]} 10. Bd3 {[%clk 0:03:01.7]} 10... Bb7 {[%clk 0:03:02.5]} 11. Qc2
{[%clk 0:03:01.9]} 11... g6 {[%clk 0:03:01.7]} 12. Nxd5 {[%clk 0:02:57.9]} 12...
Bxd5 {[%clk 0:03:01.5]} 13. e4 {[%clk 0:02:55.5]} 13... Bb7 {[%clk 0:03:00.8]}
14. O-O {[%clk 0:02:50.3]} 14... Rc8 {[%clk 0:02:59.2]} 15. Rac1 {[%clk
0:02:46.6]} 15... Nd7 {[%clk 0:02:59.5]} 16. Qd2 {[%clk 0:02:41.3]} 16... Kg7
{[%clk 0:02:53.4]} 17. Rfe1 {[%clk 0:02:39.2]} 17... c5 {[%clk 0:02:52.4]} 18.
Bb5 {[%clk 0:02:20.9]} 18... cxd4 {[%clk 0:02:44.6]} 19. Qxd4+ {[%clk
0:02:13.4]} 19... Nf6 {[%clk 0:02:40.7]} 20. e5 {[%clk 0:02:13.7]} 20... Nd5
{[%clk 0:02:39.8]} 21. Nd2 {[%clk 0:02:14.1]} 21... Rd8 {[%clk 0:02:39.2]} 22.
Bf1 {[%clk 0:02:08.2]} 22... Nb4 {[%clk 0:02:33.7]} 23. Qe3 {[%clk 0:02:01.4]}
23... Nxa2 {[%clk 0:02:31.6]} 24. Rc4 {[%clk 0:01:16.7]} 24... Nb4 {[%clk
0:02:29.6]} 25. Ne4 {[%clk 0:01:09.8]} 25... Bxe4 {[%clk 0:02:27.2]} 26. Qxe4
{[%clk 0:01:05.6]} 26... Nd5 {[%clk 0:02:27.4]} 27. h4 {[%clk 0:00:46.3]} 27...
h5 {[%clk 0:02:22.6]} 28. g3 {[%clk 0:00:44.2]} 28... a5 {[%clk 0:02:18.3]} 29.
Rc6 {[%clk 0:00:42.1]} 29... Rd7 {[%clk 0:02:14.6]} 30. Bc4 {[%clk 0:00:30]}
30... Rb8 {[%clk 0:02:05.4]} 31. Rd1 {[%clk 0:00:21.9]} 31... Qb4 {[%clk
0:01:54.2]} 32. Rd4 {[%clk 0:00:15]} 32... Qxb2 {[%clk 0:01:23.6]} 33. Bxd5
{[%clk 0:00:14.4]} 33... Rbd8 {[%clk 0:01:23.5]} 34. Rd6 {[%clk 0:00:09]} 34...
exd5 {[%clk 0:01:13]} 35. R4xd5 {[%clk 0:00:06.4]} 35... Qc1+ {[%clk 0:00:44.4]}
36. Kh2 {[%clk 0:00:06.2]} 36... Qc7 {[%clk 0:00:45.2]} 37. Qd4 {[%clk
0:00:06.6]} 1-0